bitfinex/quotes_SOLUSD_20250212
["timestamp","ask_amount","ask_price","bid_price","bid_amount"]
[1739332170810,0.063,195.1,195.09,29.68085412]
[1739332171222,0.063,195.1,195.09,37.25305412]
[1739332173712,0.063,195.1,195.09,23.84120559]
[1739332174112,0.063,195.1,195.09,37.25305412]
[1739332180332,0.063,195.1,195.09,13.78831853]
[1739332181831,0.063,195.1,195.09,29.55536412]
[1739332182151,0.063,195.1,195.09,29.68085412]
[1739332183834,0.063,195.1,195.09,13.91380853]
[1739332184144,0.063,195.1,195.09,13.78831853]
[1739332185247,0.063,195.1,195.09,13.91380853]
[1739332185638,0.063,195.1,195.09,13.78831853]
[1739332187446,0.063,195.1,195.09,13.91380853]
[1739332187659,0.063,195.1,195.09,29.68085412]
[1739332188248,0.063,195.1,195.09,13.91380853]
[1739332189050,0.063,195.1,195.07,15.76704559]
[1739332189251,0.063,195.1,195.08,15.76704559]
[1739332189457,0.063,195.1,195.09,29.68085412]
[1739332190839,0.063,195.1,195.09,54.20339971]
[1739332191051,0.063,195.12,195.11,17.26900559]
[1739332191370,0.063,195.12,195.11,35.80615412]
[1739332191736,0.063,195.12,195.11,30.13400396]
[1739332191956,0.063,195.12,195.11,31.13400396]
[1739332192278,0.063,195.17,195.16,13.91380853]
[1739332192567,0.063,195.17,195.16,33.53248269]
[1739332192740,0.063,195.17,195.16,35.83630677]
[1739332193663,0.063,195.17,195.16,46.63000151]
[1739332196065,0.063,195.17,195.16,39.20217743]
[1739332196263,0.063,195.17,195.16,38.4338987]
[1739332197562,0.063,195.17,195.16,39.4338987]
[1739332197736,0.063,195.17,195.16,44.5578987]
[1739332198667,0.063,195.17,195.16,43.5578987]
[1739332199067,0.063,195.17,195.16,38.4338987]
[1739332199243,0.063,195.17,195.16,43.5578987]
[1739332199672,0.063,195.17,195.16,45.84892691]
[1739332200459,0.063,195.17,195.16,46.61717356]
[1739332201279,0.063,195.17,195.16,37.4338987]
[1739332201644,0.063,195.17,195.16,29.6783987]
[1739332201846,0.063,195.17,195.16,13.91380853]
[1739332202179,0.063,195.17,195.16,0.37647]
[1739332202359,0.063,195.17,195.12,15.76459017]
[1739332202541,0.063,195.17,195.11,15.76459017]
[1739332202861,0.063,195.17,195.12,29.6783987]
[1739332203360,0.063,195.17,195.14,0.12549]
[1739332204364,0.063,195.17,195.13,13.66282853]
[1739332204547,15.76459017,195.16,195.13,0.25098]
[1739332204948,0.063,195.17,195.15,0.25098]
[1739332205163,0.063,195.17,195.15,13.66282853]
[1739332207774,4.0992,195.16,195.15,13.78831853]
[1739332209286,30.11179017,195.16,195.09,35.76459017]
[1739332209584,30.11179017,195.16,195.1,13.91380853]
[1739332209761,30.11179017,195.16,195.1,29.6783987]
[1739332209964,14.3472,195.16,195.1,29.6783987]
[1739332210278,4.0992,195.16,195.13,0.12549]
[1739332212693,0.063,195.17,195.13,0.12549]
[1739332212886,4.1619,195.17,195.13,0.12549]
[1739332213459,4.1619,195.17,195.15,0.12549]
[1739332213653,0.063,195.17,195.15,0.12549]
[1739332213854,0.063,195.17,195.16,13.78831853]
[1739332214487,15.82759017,195.17,195.16,13.78831853]
[1739332215000,19.92649017,195.17,195.1,15.79459017]
[1739332215201,15.76459017,195.16,195.1,0.03]
[1739332215369,15.76459017,195.16,195.11,13.91380853]
[1739332215576,10.10286459,195.16,195.11,13.91380853]
[1739332216085,14.20226459,195.15,195.11,13.91380853]
[1739332216292,10.10286459,195.13,195.1,0.03]
[1739332216471,10.10286459,195.11,195.1,0.0001]
[1739332217679,15.79412639,195.11,195.1,0.0001]
[1739332218293,19.89432639,195.11,195.1,0.0001]
[1739332221295,21.45322639,195.11,195.1,0.0001]
[1739332221508,43.73625278,195.11,195.1,0.0001]
[1739332221682,20.0,195.08,194.99,0.03]
[1739332221888,15.79412639,195.02,194.99,0.03]
[1739332222411,19.89642639,195.01,194.99,0.03]
[1739332222589,19.89642639,195.01,195.0,0.0001]
[1739332224488,15.79412639,195.0,194.99,0.0001]
[1739332225406,153.89412639,195.0,194.99,0.0001]
[1739332225986,157.99662639,195.0,194.99,0.0001]
[1739332226208,142.2025,195.0,194.99,0.0001]
[1739332228389,138.1,195.0,194.99,13.78841853]
[1739332228601,4.1019,195.03,195.0,0.37647]
[1739332229504,19.89602639,195.03,195.0,0.37647]
[1739332230310,15.79412639,195.01,195.0,13.78831853]
[1739332231818,19.89642639,195.01,195.0,13.78831853]
[1739332231994,4.1023,195.01,195.0,13.78831853]
[1739332233311,19.89642639,195.01,194.99,0.0001]
[1739332233511,19.89662639,195.0,194.99,0.37657]
[1739332233694,19.89662639,195.0,194.99,13.78841853]
[1739332234017,19.89662639,195.0,194.99,0.0001]
[1739332235497,45.94715278,195.0,194.96,0.0001]
[1739332235695,15.79412639,194.97,194.96,0.0001]
[1739332236709,19.89722639,194.97,194.96,0.0001]
[1739332242421,20.0,194.94,194.9,0.0001]
[1739332242731,67.08102639,194.97,194.88,0.0001]
[1739332242732,52.58825278,194.91,194.88,0.0001]
[1739332242919,20.0,194.86,194.85,0.0001]
[1739332243096,35.79412639,194.86,194.85,0.0001]
[1739332243492,39.89962639,194.86,194.85,0.0001]
[1739332245730,15.79412639,194.88,194.85,0.0001]
[1739332246137,4.1048,194.89,194.86,0.37647]
[1739332246308,19.89872639,194.91,194.87,13.41184853]
[1739332246501,4.1046,194.91,194.87,13.41184853]
[1739332246821,15.79412639,194.92,194.89,13.41184853]
[1739332247121,4.1038,194.95,194.92,0.37647]
[1739332247525,20.0,194.95,194.92,0.37647]
[1739332247825,19.89722639,194.97,194.92,0.37647]
[1739332248397,35.79412639,194.95,194.92,0.37647]
[1739332248627,19.89792639,194.94,194.92,0.37647]
[1739332249827,4.1038,194.94,194.92,0.37647]
[1739332252204,19.89792639,194.94,194.92,0.37647]
[1739332253928,4.1038,194.94,194.93,13.78831853]
[1739332255535,138.1,194.98,194.93,13.78831853]
[1739332255536,138.1,195.0,194.94,0.25098]
[1739332255706,4.1029,194.98,194.97,13.78831853]
[1739332256028,10.3192,195.01,194.97,13.78831853]
[1739332256029,30.21562639,195.01,194.97,13.78831853]
[1739332256327,15.79412639,195.0,194.97,13.78831853]
[1739332258225,4.1027,194.99,194.97,13.78831853]
[1739332259142,15.79412639,194.98,194.93,1.5622]
[1739332259341,15.79412639,194.96,194.89,15.79412639]
[1739332259543,15.79412639,194.96,194.93,13.78831853]
[1739332260246,15.79412639,194.94,194.93,13.78831853]
[1739332261122,15.79412639,194.95,194.93,13.78831853]
[1739332261329,15.79412639,194.96,194.93,13.78831853]
[1739332261529,19.89702639,194.98,194.94,0.12549]
[1739332261730,4.1029,194.98,194.94,0.12549]
[1739332261930,4.1658,194.99,194.94,0.12549]
[1739332262236,4.1658,194.99,194.96,0.12549]
[1739332262434,0.063,194.99,194.96,0.12549]
[1739332262638,0.063,194.99,194.98,0.12549]
[1739332265427,0.063,194.99,194.98,29.70793492]
[1739332265624,0.063,194.99,194.98,13.91380853]
[1739332265828,15.85712639,194.99,194.97,1.514]
[1739332266053,15.85712639,194.99,194.93,15.79412639]
[1739332266240,15.85712639,194.99,194.94,13.91380853]
[1739332266427,19.95992639,194.99,194.94,13.91380853]
[1739332266949,4.1658,194.99,194.94,29.70793492]
[1739332267729,0.063,194.99,194.96,13.91380853]
[1739332267948,0.063,194.99,194.96,29.70793492]
[1739332268134,4.1658,194.99,194.96,13.91380853]
[1739332268848,0.063,194.99,194.96,29.70793492]
[1739332269339,0.063,194.99,194.98,13.91380853]
[1739332270048,0.063,194.99,194.98,29.70793492]
[1739332271332,0.063,194.99,194.98,34.83663492]
[1739332271546,0.063,194.99,194.98,36.35063492]
[1739332271747,0.063,194.99,194.98,31.22193492]
[1739332271949,0.063,194.99,194.98,15.42780853]
[1739332273051,0.063,194.99,194.98,13.91380853]
[1739332273752,15.85712639,194.99,194.92,6.0439]
[1739332273958,15.79412639,194.95,194.93,0.37647]
[1739332274266,153.89412639,194.98,194.95,0.37647]
[1739332275173,4.1031,194.97,194.95,0.37647]
[1739332275660,4.1031,194.97,194.96,13.53733853]
[1739332275835,0.063,194.99,194.98,0.12549]
[1739332276033,4.1657,194.99,194.98,13.53733853]
[1739332276234,4.1657,194.99,194.98,13.91380853]
[1739332276235,0.063,194.99,194.98,13.91380853]
[1739332276466,0.063,194.99,194.98,29.70793492]
[1739332277263,0.063,194.99,194.98,13.91380853]
[1739332277447,0.063,194.99,194.98,0.37647]
[1739332278267,15.85712639,194.99,194.94,13.41184853]
[1739332278446,15.79412639,194.97,194.93,13.91380853]
[1739332278836,4.1036,194.95,194.93,0.37647]
[1739332279059,19.89772639,194.95,194.93,0.37647]
[1739332279264,4.1036,194.95,194.93,0.37647]
[1739332282360,4.1033,194.97,194.95,0.37647]
[1739332283369,15.79412639,194.96,194.89,17.37602639]
[1739332283664,15.79412639,194.95,194.9,13.91380853]
[1739332284238,4.1038,194.94,194.9,13.91380853]
[1739332284443,4.1038,194.94,194.93,0.37647]
[1739332284850,15.79412639,194.97,194.93,0.37647]
[1739332285771,15.79412639,194.96,194.93,0.37647]
[1739332286868,4.1036,194.95,194.93,0.37647]
[1739332287249,4.1036,194.95,194.9,13.41184853]
[1739332287454,19.89772639,194.95,194.9,13.41184853]
[1739332287651,19.89772639,194.95,194.91,0.37647]
[1739332287850,15.79412639,194.93,194.89,0.12549]
[1739332288055,15.79412639,194.93,194.87,6.1726]
[1739332288273,15.79412639,194.93,194.88,13.91380853]
[1739332288775,19.89772639,194.95,194.88,29.70793492]
[1739332289684,19.89772639,194.95,194.9,0.37647]
[1739332290373,4.1036,194.95,194.93,0.37647]
[1739332291055,19.89772639,194.95,194.88,15.79412639]
[1739332291261,19.89772639,194.95,194.89,13.91380853]
[1739332292194,15.79412639,194.93,194.89,13.91380853]
[1739332292382,4.1042,194.92,194.89,13.91380853]
[1739332293061,30.15892639,194.92,194.85,15.79422639]
[1739332293263,30.15892639,194.92,194.85,0.0001]
[1739332293264,15.79412639,194.91,194.85,0.0001]
[1739332293575,15.79412639,194.91,194.88,0.37647]
[1739332294478,4.1046,194.9,194.88,0.37647]
[1739332294777,15.79412639,194.89,194.86,0.12549]
[1739332294974,15.79412639,194.89,194.87,0.37647]
[1739332295963,4.105,194.88,194.87,0.37647]
[1739332296977,14.3662,194.9,194.87,0.37647]
[1739332297773,30.16032639,194.9,194.87,0.37647]
[1739332298387,15.79412639,194.89,194.85,13.41194853]
[1739332298772,4.105,194.88,194.86,0.37647]
[1739332301188,157.99912639,194.88,194.85,0.0001]
[1739332301367,15.79412639,194.86,194.85,0.0001]
[1739332302387,19.89962639,194.86,194.85,0.0001]
[1739332302773,4.1055,194.86,194.85,0.0001]
[1739332304886,153.89412639,194.88,194.85,0.0001]
[1739332305089,4.1053,194.87,194.85,0.0001]
[1739332308085,4.1053,194.87,194.86,0.37647]
[1739332308291,4.1044,194.91,194.9,0.37647]
[1739332308486,4.1044,194.91,194.9,13.91380853]
[1739332309071,4.1672,194.92,194.91,13.53733853]
[1739332309289,0.063,194.92,194.91,29.70793492]
[1739332310088,0.063,194.92,194.91,13.91380853]
[1739332310869,0.063,194.92,194.91,0.37647]
[1739332311177,15.85712639,194.92,194.85,22.05402639]
[1739332311387,15.85712639,194.92,194.86,13.91380853]
[1739332311684,0.063,194.92,194.88,13.91380853]
[1739332311891,0.063,194.92,194.88,29.70793492]
[1739332313192,15.85712639,194.92,194.88,0.37647]
[1739332313377,15.79412639,194.9,194.85,6.2599]
[1739332313570,15.79412639,194.89,194.87,0.37647]
[1739332314472,4.105,194.88,194.87,0.37647]
[1739332315092,4.105,194.88,194.85,13.53743853]
[1739332315271,19.89912639,194.88,194.85,0.0001]
[1739332316375,4.105,194.88,194.85,0.0001]
[1739332320101,4.1048,194.89,194.85,0.0001]
[1739332320684,19.89892639,194.89,194.85,0.0001]
[1739332321004,15.79412639,194.86,194.85,0.0001]
[1739332321780,15.79412639,194.87,194.85,0.0001]
[1739332322084,4.1055,194.86,194.85,0.0001]
[1739332322781,4.1053,194.87,194.86,0.37647]
[1739332323778,0.063,194.88,194.86,0.37647]
[1739332324308,15.85712639,194.88,194.86,0.37647]
[1739332324821,15.79412639,194.87,194.85,0.0001]
[1739332325100,15.79412639,194.86,194.85,0.0001]
[1739332325280,153.89412639,194.86,194.85,0.0001]
[1739332325676,15.79412639,194.86,194.85,0.0001]
[1739332325901,19.89962639,194.86,194.85,0.0001]
[1739332326280,20.89962639,194.86,194.85,0.0001]
[1739332326481,19.89962639,194.86,194.85,0.0001]
[1739332326705,20.89962639,194.86,194.85,0.0001]
[1739332327504,19.89962639,194.86,194.85,0.0001]
[1739332328103,157.99962639,194.86,194.85,0.0001]
[1739332330400,142.2055,194.86,194.85,0.0001]
[1739332330615,4.1055,194.86,194.85,0.0001]
[1739332330817,4.1682,194.88,194.86,0.37647]
[1739332331489,4.1682,194.88,194.85,0.0001]
[1739332331799,4.1682,194.88,194.85,0.37657]
[1739332333686,0.063,194.87,194.85,0.37657]
[1739332334399,0.063,194.87,194.86,0.37647]
[1739332339589,0.063,194.87,194.86,13.91380853]
[1739332341013,0.063,194.87,194.86,0.37647]
[1739332341394,4.1683,194.87,194.86,0.37647]
[1739332341786,39.96242639,194.87,194.85,0.0001]
[1739332341991,15.79412639,194.86,194.85,0.0001]
[1739332342193,153.89412639,194.86,194.85,0.0001]
[1739332343318,157.99962639,194.86,194.85,0.0001]
[1739332344504,19.89962639,194.86,194.85,0.0001]
[1739332353311,20.89962639,194.86,194.85,0.0001]
[1739332353515,21.89962639,194.86,194.85,0.0001]
[1739332356025,20.89962639,194.86,194.85,0.0001]
[1739332358231,21.89962639,194.86,194.85,0.0001]
[1739332358540,21.96262639,194.86,194.85,0.0001]
[1739332358836,21.0,194.83,194.73,6.1624]
[1739332359042,15.79412639,194.75,194.73,6.1624]
[1739332359206,15.79412639,194.8,194.73,6.28789]
[1739332359207,15.79412639,194.74,194.73,6.28789]
[1739332360141,19.90212639,194.74,194.73,6.28789]
[1739332361251,19.90212639,194.74,194.72,1.5264]
[1739332361408,15.79412639,194.73,194.68,6.6062]
[1739332361743,15.79412639,194.69,194.68,6.6062]
[1739332361943,15.79412639,194.7,194.68,6.6062]
[1739332362439,15.79412639,194.69,194.68,6.6062]
[1739332362640,15.79412639,194.69,194.65,0.37647]
[1739332363340,19.90342639,194.68,194.65,0.37647]
[1739332363524,4.1093,194.68,194.65,0.37647]
[1739332364225,138.1,194.72,194.68,0.12549]
[1739332364427,4.1086,194.71,194.69,0.37647]
[1739332365710,15.79412639,194.75,194.71,0.12549]
[1739332365931,4.1081,194.74,194.71,0.12549]
[1739332367239,15.79412639,194.73,194.7,8.2301]
[1739332367714,4.1081,194.74,194.66,15.79412639]
[1739332367715,15.79412639,194.71,194.66,1.6058]
[1739332368037,15.79412639,194.71,194.67,13.91380853]
[1739332368937,153.89412639,194.73,194.67,13.91380853]
[1739332369642,138.1,194.73,194.71,0.37647]
[1739332369811,4.108,194.74,194.71,0.37647]
[1739332370207,4.108,194.74,194.66,17.39992639]
[1739332370208,15.79412639,194.72,194.66,17.39992639]
[1739332370412,15.79412639,194.72,194.67,13.91380853]
[1739332370717,15.79412639,194.73,194.67,29.70793492]
[1739332371243,158.00212639,194.74,194.67,29.70793492]
[1739332371418,158.00212639,194.74,194.71,0.37647]
[1739332371616,19.90212639,194.74,194.71,0.37647]
[1739332372737,4.108,194.74,194.73,0.37647]
[1739332373129,4.108,194.74,194.68,15.79412639]
[1739332373331,19.90212639,194.74,194.68,15.79412639]
[1739332373633,4.1076,194.76,194.7,15.79412639]
[1739332373818,4.1076,194.76,194.73,0.37647]
[1739332375447,15.79412639,194.75,194.69,15.79412639]
[1739332375621,4.108,194.74,194.7,13.91380853]
[1739332376151,19.90212639,194.74,194.68,15.79412639]
[1739332376330,15.79412639,194.72,194.66,17.39992639]
[1739332376529,158.00212639,194.74,194.68,15.79412639]
[1739332376839,15.79412639,194.73,194.69,0.37647]
[1739332377041,15.79412639,194.72,194.69,0.37647]
[1739332377541,4.1088,194.7,194.67,13.53733853]
[1739332377745,4.1088,194.7,194.68,0.37647]
[1739332377944,4.1088,194.7,194.66,1.6058]
[1739332377945,19.90292639,194.7,194.66,1.6058]
[1739332378341,19.90292639,194.7,194.67,0.37647]
[1739332378642,4.1088,194.7,194.68,0.12549]
[1739332378839,4.1088,194.7,194.69,0.37647]
[1739332379343,19.90292639,194.7,194.66,1.6058]
[1739332379546,4.1088,194.7,194.67,13.78831853]
[1739332379855,4.1088,194.7,194.67,0.37647]
[1739332380024,19.90292639,194.7,194.66,1.6058]
[1739332380342,4.1088,194.7,194.67,0.37647]
[1739332380920,4.1088,194.7,194.67,13.78831853]
[1739332381119,4.1086,194.71,194.69,0.37647]
[1739332381319,19.90272639,194.71,194.69,0.37647]
[1739332382542,4.1086,194.71,194.69,0.37647]
[1739332383933,19.90212639,194.74,194.69,0.37647]
[1739332384135,4.108,194.74,194.7,13.53733853]
[1739332384332,4.108,194.74,194.7,29.33146492]
[1739332384639,4.1076,194.76,194.7,29.33146492]
[1739332386628,15.79412639,194.76,194.7,13.53733853]
[1739332387344,15.79412639,194.75,194.7,13.53733853]
[1739332387751,4.108,194.74,194.7,13.53733853]
[1739332389269,15.79412639,194.73,194.66,17.39992639]
[1739332389563,15.79412639,194.73,194.67,13.91380853]
[1739332389942,4.1084,194.72,194.67,13.91380853]
[1739332390663,4.1084,194.72,194.67,29.70793492]
[1739332390872,4.1084,194.72,194.7,0.37647]
[1739332391567,19.90192639,194.75,194.71,0.12549]
[1739332391874,4.1078,194.75,194.71,0.12549]
[1739332392370,4.1076,194.76,194.73,0.12549]
[1739332392536,4.1076,194.76,194.73,0.50196]
[1739332392952,15.79412639,194.74,194.66,1.6058]
[1739332393175,15.79412639,194.69,194.66,1.6058]
[1739332393477,15.79412639,194.69,194.67,0.37647]
[1739332393767,15.79412639,194.72,194.67,0.37647]
[1739332393939,19.90262639,194.72,194.69,0.37647]
[1739332394273,15.79412639,194.71,194.69,0.37647]
[1739332394474,15.79412639,194.71,194.66,1.6058]
[1739332394641,15.79412639,194.71,194.61,69.8917567]
[1739332394642,15.79412639,194.67,194.61,69.8917567]
[1739332394841,14.3796,194.72,194.61,69.8917567]
[1739332394842,15.79412639,194.65,194.61,1.541]
[1739332395146,15.79412639,194.64,194.62,0.37647]
[1739332395938,4.1101,194.64,194.62,0.37647]
[1739332396259,4.1101,194.64,194.54,6.45650992]
[1739332396260,15.79412639,194.63,194.56,23.46362639]
[1739332396460,15.79412639,194.62,194.56,7.6695]
[1739332396668,15.79412639,194.61,194.57,13.66282853]
[1739332396866,15.79412639,194.61,194.58,0.25098]
[1739332397367,4.1107,194.61,194.58,0.25098]
[1739332397556,19.90482639,194.61,194.58,0.25098]
[1739332398069,4.1107,194.61,194.58,0.25098]
[1739332398252,15.79412639,194.64,194.61,0.12549]
[1739332398640,15.79412639,194.65,194.62,0.25098]
[1739332398969,15.79412639,194.66,194.62,0.25098]
[1739332399160,4.1095,194.67,194.62,0.25098]
[1739332399161,15.79412639,194.65,194.62,0.25098]
[1739332399360,19.90412639,194.65,194.62,0.25098]
[1739332399553,153.89412639,194.64,194.58,15.79412639]
[1739332399760,15.79412639,194.63,194.57,15.79412639]
[1739332399952,15.79412639,194.64,194.58,13.91380853]
[1739332400965,138.1,194.68,194.64,0.37647]
[1739332400966,153.89412639,194.68,194.64,0.37647]
[1739332401272,19.90332639,194.69,194.64,0.37647]
[1739332401566,19.90292639,194.71,194.66,0.37647]
[1739332401769,15.79412639,194.71,194.65,13.67059639]
[1739332401965,15.79412639,194.71,194.66,13.53733853]
[1739332403070,4.1088,194.7,194.66,13.53733853]
[1739332403480,15.79412639,194.67,194.64,1.541]
[1739332403685,15.79412639,194.66,194.59,17.33512639]
[1739332403986,15.79412639,194.69,194.64,0.12549]
[1739332404177,15.79412639,194.68,194.64,0.12549]
[1739332404486,14.381,194.7,194.6,15.79412639]
[1739332404663,15.79412639,194.66,194.61,13.91380853]
[1739332404955,15.79412639,194.67,194.61,13.91380853]
[1739332405162,4.1097,194.66,194.61,13.91380853]
[1739332405352,19.90382639,194.66,194.61,13.91380853]
[1739332405975,4.1097,194.66,194.61,13.91380853]
[1739332407083,4.1097,194.66,194.61,29.70793492]
[1739332407279,19.90362639,194.67,194.61,13.91380853]
[1739332408178,4.1095,194.67,194.61,29.70793492]
[1739332408353,15.79412639,194.66,194.61,13.91380853]
[1739332408878,19.90362639,194.67,194.61,13.91380853]
[1739332409177,4.1095,194.67,194.61,29.70793492]
[1739332409681,4.1095,194.67,194.64,0.12549]
[1739332410785,168.27732639,194.67,194.6,15.79412639]
[1739332410963,152.4832,194.67,194.62,13.91380853]
[1739332411448,4.1095,194.67,194.62,29.70793492]
[1739332411647,4.1095,194.67,194.65,0.12549]
[1739332412670,4.1088,194.7,194.65,0.12549]
[1739332413590,4.1088,194.7,194.67,0.12549]
[1739332414381,15.79412639,194.72,194.67,0.12549]
[1739332414580,4.1086,194.71,194.67,0.12549]
[1739332415650,4.1086,194.71,194.69,0.12549]
[1739332416964,4.108,194.74,194.71,0.12549]
[1739332417171,19.90212639,194.74,194.71,0.12549]
[1739332417569,15.79412639,194.73,194.71,0.12549]
[1739332417987,19.90212639,194.74,194.71,0.12549]
[1739332418490,15.79412639,194.73,194.71,0.12549]
[1739332418661,15.79412639,194.72,194.61,17.38652639]
[1739332418985,15.79412639,194.68,194.64,13.91380853]
[1739332419581,15.79412639,194.69,194.64,13.91380853]
[1739332420405,4.1093,194.68,194.64,13.91380853]
[1739332421468,19.90342639,194.68,194.64,13.91380853]
[1739332422582,4.1093,194.68,194.64,13.91380853]
[1739332425666,26.06672639,194.7,194.64,13.91380853]
[1739332425869,15.79412639,194.7,194.64,13.91380853]
[1739332426704,15.79412639,194.69,194.64,13.91380853]
[1739332427570,10.14946828,194.7,194.64,13.91380853]
[1739332427780,4.109,194.69,194.64,13.94380853]
[1739332428678,14.25846828,194.69,194.64,13.94380853]
[1739332430195,0.063,194.7,194.64,24.09327681]
[1739332430381,0.063,194.7,194.66,0.12549]
[1739332430581,4.1719,194.7,194.66,0.12549]
[1739332432808,14.32136828,194.7,194.66,0.12549]
[1739332433310,10.14946828,194.69,194.66,0.12549]
[1739332433478,14.32136828,194.7,194.66,0.12549]
[1739332434815,4.1719,194.7,194.66,0.12549]
[1739332436014,0.063,194.7,194.69,0.37647]
[1739332438214,0.063,194.7,194.69,0.12549]
[1739332438399,10.21246828,194.7,194.69,0.12549]
[1739332438595,14.32126828,194.7,194.69,0.12549]
[1739332438905,4.1718,194.7,194.69,0.12549]
[1739332440097,0.063,194.7,194.69,0.12549]
[1739332440628,0.063,194.7,194.69,13.91380853]
[1739332444420,0.063,194.7,194.69,24.06327681]
[1739332444600,0.063,194.7,194.69,30.52177681]
[1739332444809,4.1069,194.79,194.7,0.50196]
[1739332445021,10.14946828,194.78,194.75,0.12549]
[1739332445422,10.14946828,194.78,194.73,0.12549]
[1739332445815,10.14946828,194.77,194.73,13.53733853]
[1739332446021,10.14946828,194.74,194.69,6.4585]
[1739332446217,10.14946828,194.74,194.7,13.91380853]
[1739332446419,10.14946828,194.73,194.7,13.91380853]
[1739332446838,10.14946828,194.71,194.7,0.12549]
[1739332447126,10.14946828,194.71,194.64,6.4885]
[1739332447328,10.14946828,194.67,194.65,0.37647]
[1739332447642,10.14946828,194.67,194.66,0.12549]
[1739332447828,10.14946828,194.68,194.66,0.12549]
[1739332448131,4.1095,194.68,194.66,0.12549]
[1739332448540,14.25896828,194.68,194.66,0.12549]
[1739332448707,4.1095,194.68,194.66,0.12549]
[1739332449423,4.1088,194.7,194.66,0.12549]
[1739332449619,4.1088,194.7,194.68,0.12549]
[1739332449817,4.1084,194.72,194.68,0.12549]
[1739332450017,10.14946828,194.74,194.68,0.12549]
[1739332450250,4.1082,194.73,194.68,0.12549]
[1739332450437,4.1082,194.73,194.7,0.12549]
[1739332451537,10.14946828,194.75,194.72,0.12549]
[1739332451538,4.108,194.75,194.72,0.12549]
[1739332452240,4.1076,194.76,194.72,0.12549]
[1739332452423,10.14946828,194.79,194.74,0.12549]
[1739332452623,4.1071,194.78,194.74,0.12549]
[1739332454317,4.1071,194.78,194.76,0.12549]
[1739332456437,148.3664,194.81,194.76,0.12549]
[1739332456737,4.1067,194.8,194.76,0.12549]
[1739332457536,14.25616828,194.8,194.76,0.12549]
[1739332457912,10.14946828,194.79,194.76,0.12549]
[1739332458524,10.14946828,194.78,194.76,0.12549]
[1739332459543,4.1069,194.79,194.76,0.12549]
[1739332459544,14.25636828,194.79,194.76,0.12549]
[1739332460245,4.1069,194.79,194.76,0.12549]
[1739332460615,4.1067,194.8,194.76,0.12549]
[1739332460946,14.25616828,194.8,194.76,0.12549]
[1739332461440,10.14946828,194.79,194.76,0.12549]
[1739332461644,10.14946828,194.78,194.76,0.12549]
[1739332463343,4.1071,194.78,194.76,0.12549]
[1739332464650,4.1069,194.79,194.76,0.12549]
[1739332464942,4.1699,194.79,194.76,0.12549]
[1739332466653,0.063,194.79,194.78,0.12549]
[1739332466829,0.063,194.79,194.78,10.27495828]
[1739332467243,0.063,194.79,194.78,24.06327681]
[1739332467944,0.063,194.79,194.78,13.91380853]
[1739332473131,0.063,194.79,194.75,6.3429]
[1739332473330,0.063,194.79,194.76,13.91380853]
[1739332475967,0.063,194.79,194.76,24.06327681]
[1739332476170,0.063,194.79,194.76,13.91380853]
[1739332477881,0.063,194.79,194.76,24.06327681]
[1739332478453,0.063,194.79,194.76,13.91380853]
[1739332480582,0.063,194.79,194.76,24.06327681]
[1739332480883,0.063,194.79,194.78,13.91380853]
[1739332481099,0.063,194.79,194.78,24.06327681]
[1739332481954,0.063,194.79,194.78,13.91380853]
[1739332482486,0.063,194.79,194.78,30.79107681]
[1739332483480,0.063,194.79,194.78,31.79107681]
[1739332483675,0.063,194.79,194.78,25.65717681]
[1739332484899,0.063,194.79,194.78,13.91380853]
[1739332488602,0.063,194.79,194.78,24.06327681]
[1739332488771,0.063,194.79,194.78,13.91380853]
[1739332489787,0.063,194.79,194.78,24.06327681]
[1739332490191,0.063,194.79,194.78,13.91380853]
[1739332493700,0.063,194.79,194.78,24.06327681]
[1739332497021,0.063,194.79,194.78,29.19717681]
[1739332499016,0.063,194.79,194.78,24.06327681]
[1739332501600,0.063,194.79,194.78,29.96700366]
[1739332502004,0.063,194.79,194.78,24.06327681]
[1739332503208,0.063,194.79,194.78,13.91380853]